bitfinex-derivatives/quotes_BNBF0:USTF0_20250316
["timestamp","ask_amount","ask_price","bid_price","bid_amount"]
[1742096452216,0.32695765,611.7,610.9,6.495]
[1742096452217,2.47130862,611.6,610.9,6.495]
[1742096452410,0.32701646,611.59,610.9,6.495]
[1742096454219,2.47130862,611.57,610.9,6.495]
[1742096454620,0.3270325,611.56,610.9,6.495]
[1742096458523,2.47130862,611.52,610.9,6.495]
[1742096462030,2.47130862,611.51,610.9,6.495]
[1742096464124,0.3270325,611.56,610.9,6.495]
[1742096481337,2.47130862,611.82,610.9,6.495]
[1742096483342,2.47130862,612.64,610.9,6.495]
[1742096483542,0.28469169,612.17,610.9,6.495]
[1742096483737,0.32671197,612.16,610.9,6.495]
[1742096501453,0.28464046,612.15,610.9,6.495]
[1742096501651,0.32672264,612.14,610.9,6.495]
[1742096504356,0.28464046,612.13,610.9,6.495]
[1742096504956,0.32673332,612.12,610.9,6.495]
[1742096507457,0.28465443,612.11,610.9,6.495]
[1742096507655,0.32674399,612.1,610.9,6.495]
[1742096510457,0.2846684,612.09,610.9,6.495]
[1742096510657,0.32675467,612.08,610.9,6.495]
[1742096513362,0.28465559,612.07,610.9,6.495]
[1742096513555,0.32677068,612.05,610.9,6.495]
[1742096516363,0.28466607,612.04,610.9,6.495]
[1742096516555,0.32678136,612.03,610.9,6.495]
[1742096519566,0.28467306,612.02,610.9,6.495]
[1742096519767,0.32679204,612.01,610.9,6.495]
[1742096528578,0.28464628,612.0,610.9,6.495]
[1742096528772,0.32680272,611.99,610.9,6.495]
[1742096533487,0.28472663,611.98,610.9,6.495]
[1742096534582,0.32681874,611.96,610.9,6.495]
[1742096536483,0.28473827,611.95,610.9,6.495]
[1742096536690,0.32683476,611.93,610.9,6.495]
[1742096539890,2.47130862,611.78,610.9,6.495]
[1742096540091,0.32692024,611.77,610.9,6.495]
[1742096555508,0.28479536,611.76,610.9,6.495]
[1742096556602,0.32693093,611.75,610.9,6.495]
[1742096558605,0.2847907,611.74,610.9,6.495]
[1742096558806,0.32694162,611.73,610.9,6.495]
[1742096560607,2.47130862,611.72,610.9,6.495]
[1742096561003,0.32695231,611.71,610.9,6.495]
[1742096564607,2.47130862,611.56,610.9,6.495]
[1742096567705,2.47130862,611.57,610.9,6.495]
[1742096569512,0.32695231,611.71,610.9,6.495]
[1742096620660,3.97329378,611.71,610.9,6.495]
[1742096620863,3.64634147,611.7,610.9,6.495]
[1742096621060,3.97330447,611.69,610.9,6.495]
[1742096621262,3.97330981,611.68,610.9,6.495]
[1742096621464,3.64634147,611.67,610.9,6.495]
[1742096621762,3.64634147,611.66,610.9,6.495]
[1742096621962,3.64634147,611.65,610.9,6.495]
[1742096622162,3.64634147,611.64,610.9,6.495]
[1742096622463,3.64634147,611.63,610.9,6.495]
[1742096622662,3.64634147,611.62,610.9,6.495]
[1742096622861,3.64634147,611.61,610.9,6.495]
[1742096623060,3.64634147,611.6,610.9,6.495]
[1742096623257,3.64634147,611.59,610.9,6.495]
[1742096623458,3.64634147,611.58,610.9,6.495]
[1742096623662,3.64634147,611.57,610.9,6.495]
[1742096623863,3.64634147,611.56,610.9,6.495]
[1742096624062,3.64634147,611.55,610.9,6.495]
[1742096624260,0.32696834,611.68,610.9,6.495]
[1742096626262,2.47130862,611.54,610.9,6.495]
[1742096627866,2.47130862,611.64,610.9,6.495]
[1742096629469,0.32696834,611.68,610.9,6.495]
[1742096637370,3.64634147,612.05,610.9,6.495]
[1742096637572,3.97311749,612.04,610.9,6.495]
[1742096637768,3.97312283,612.03,610.9,6.495]
[1742096637967,3.64634147,612.02,610.9,6.495]
[1742096638170,0.32679204,612.01,610.9,6.495]
[1742096638370,3.97313351,612.01,610.9,6.495]
[1742096639073,0.32679204,612.01,610.9,6.495]
[1742096658785,3.97313351,612.01,610.9,6.495]
[1742096658988,3.64634147,612.0,610.9,6.495]
[1742096659188,3.97314419,611.99,610.9,6.495]
[1742096659492,3.97314953,611.98,610.9,6.495]
[1742096659687,3.64634147,611.97,610.9,6.495]
[1742096659887,3.64634147,611.96,610.9,6.495]
[1742096660087,3.97316555,611.95,610.9,6.495]
[1742096660286,3.97317089,611.94,610.9,6.495]
[1742096660592,3.97317623,611.93,610.9,6.495]
[1742096660794,3.64634147,611.92,610.9,6.495]
[1742096661008,3.64634147,611.91,610.9,6.495]
[1742096661293,3.64634147,611.9,610.9,6.495]
[1742096661489,3.64634147,611.89,610.9,6.495]
[1742096661692,0.32683476,611.93,610.9,6.495]
[1742096664489,3.95840248,611.93,610.9,6.495]
[1742096664689,3.63156772,611.92,610.9,6.495]
[1742096664890,0.32684545,611.91,610.9,6.495]
[1742096689715,3.96021828,611.91,610.9,6.495]
[1742096689913,3.63337283,611.9,610.9,6.495]
[1742096690111,3.96022896,611.89,610.9,6.495]
[1742096690313,3.9602343,611.88,610.9,6.495]
[1742096690521,3.63337283,611.87,610.9,6.495]
[1742096690714,3.63337283,611.86,610.9,6.495]
[1742096690915,0.32686147,611.88,610.9,6.495]
[1742096723032,3.97924148,611.88,610.9,6.495]
[1742096723233,3.65238001,611.87,610.9,6.495]
[1742096723438,0.32687216,611.86,610.9,6.495]
[1742096741956,3.97477554,611.86,610.9,6.495]
[1742096742154,3.64790338,611.85,610.9,6.495]
[1742096742350,3.97478622,611.84,610.9,6.495]
[1742096742550,3.97479156,611.83,610.9,6.495]
[1742096742755,3.97479691,611.82,610.9,6.495]
[1742096742951,3.97480225,611.81,610.9,6.495]
[1742096743156,3.97480759,611.8,610.9,6.495]
[1742096743357,3.64790338,611.79,610.9,6.495]
[1742096743553,0.3269149,611.78,610.9,6.495]
[1742096759771,0.28477206,611.77,610.9,6.495]
[1742096759969,0.32692559,611.76,610.9,6.495]
[1742096761771,2.47130862,611.74,610.9,6.495]
[1742096762071,0.32694162,611.73,610.9,6.495]
[1742096782779,0.28482567,611.72,610.9,6.495]
[1742096782983,0.32695765,611.7,610.9,6.495]
[1742096786684,0.28482567,611.69,610.9,6.495]
[1742096786883,0.32696834,611.68,610.9,6.495]
[1742096789684,0.28483383,611.67,610.9,6.495]
[1742096789886,0.32697904,611.66,610.9,6.495]
[1742096790787,2.47130862,611.48,610.9,6.495]
[1742096790994,0.32708064,611.47,610.9,6.495]
[1742096795189,3.97339823,611.47,610.9,6.495]
[1742096795392,3.64631759,611.46,610.9,6.495]
[1742096795591,3.64631759,611.45,610.9,6.495]
[1742096795788,3.64631759,611.44,610.08,0.28486763]
[1742096795988,3.64631759,611.43,610.09,0.32782048]
[1742096796194,3.64631759,611.42,610.09,0.32782048]
[1742096796391,0.32708064,611.47,610.09,0.32782048]
[1742096797997,0.32708064,611.47,610.1,1.433]
[1742096798492,0.32708064,611.47,610.11,1.293]
[1742096799098,0.32708064,611.47,610.12,1.542]
[1742096799698,0.32708064,611.47,610.13,1.346]
[1742096813112,0.32708064,611.47,610.13,1.67379899]
[1742096814616,0.32708064,611.47,610.14,0.32779362]
[1742096816218,0.32708064,611.47,610.15,0.98076359]
[1742096816418,0.32708064,611.47,610.16,0.32778287]
[1742096819021,0.32708064,611.47,610.17,1.28179991]
[1742096819323,0.32708064,611.47,610.18,1.30866432]
[1742096819617,0.32708064,611.47,610.19,1.60956236]
[1742096819821,0.32708064,611.47,610.2,1.30865357]
[1742096820120,0.32708064,611.47,610.21,1.3086482]
[1742096820323,0.32708064,611.47,610.22,0.98089219]
[1742096820524,0.32708064,611.47,610.23,0.98089219]
[1742096820822,0.32708064,611.47,610.24,0.3277399]
[1742096821322,0.32708064,611.47,610.25,0.98089606]
[1742096821515,0.32708064,611.47,610.26,1.30862522]
[1742096821722,0.32708064,611.47,610.27,1.30861985]
[1742096822023,0.32708064,611.47,610.28,0.98089606]
[1742096822522,0.32708064,611.47,610.27,0.32772379]
[1742096822723,0.32708064,611.47,610.28,0.98107283]
[1742096823023,0.32708064,611.47,610.29,0.98104219]
[1742096823220,0.32708064,611.47,610.27,0.32772379]
[1742096823221,0.32708064,611.47,610.3,0.98104219]
[1742096823422,0.32708064,611.47,610.31,0.98109879]
[1742096823718,0.32708064,611.47,610.32,0.98108832]
[1742096823921,0.32708064,611.47,610.33,0.98108524]
[1742096824121,0.32708064,611.47,610.27,0.32772379]
[1742096824323,0.32708064,611.47,610.28,0.98115296]
[1742096824532,0.32708064,611.47,610.29,1.30886601]
[1742096824722,0.32708064,611.47,610.3,2.44405261]
[1742096824921,0.32708064,611.47,610.31,0.98113801]
[1742096825123,0.32708064,611.47,610.32,0.98113801]
[1742096825318,0.32708064,611.47,610.33,0.98113801]
[1742096825522,0.32708064,611.47,610.31,1.738]
[1742096825922,0.32708064,611.47,610.32,0.98119444]
[1742096826125,0.32708064,611.47,610.31,1.738]
[1742096826326,0.32708064,611.47,610.32,0.32769694]
[1742096826728,0.32708064,611.47,610.33,0.9812453]
[1742096827027,0.32708064,611.47,610.34,1.3089315]
[1742096827222,0.32708064,611.47,610.34,0.3276862]
[1742096827824,0.32708064,611.47,610.35,0.98129711]
[1742096828026,0.32708064,611.47,610.34,0.3276862]
[1742096828226,0.32708064,611.47,610.36,1.24]
[1742096847144,0.32708064,611.47,610.37,1.639]
[1742096848951,0.32708064,611.47,610.38,1.563]
[1742096858758,0.32708064,611.47,610.39,1.272]
[1742096864168,0.32708064,611.47,610.4,1.119]
[1742096870973,0.32708064,611.47,610.4,2.452]
[1742096875872,0.32708064,611.47,610.4,4.062]
[1742096881379,0.32708064,611.47,610.4,5.608]
[1742096896793,2.47130862,611.42,610.4,5.608]
[1742096896992,0.32711273,611.41,610.4,5.608]
[1742096912200,2.47130862,611.37,610.4,5.608]
[1742096912503,0.32713949,611.36,610.4,5.608]
[1742096913597,2.47130862,611.35,610.4,5.608]
[1742096913793,0.32715019,611.34,610.4,5.608]
[1742096918205,0.30715019,611.34,610.4,5.608]
[1742096938433,3.95883124,611.34,610.4,5.608]
[1742096938633,3.65168105,611.33,610.4,5.608]
[1742096938837,3.65168105,611.32,610.4,5.608]
[1742096939034,0.32715554,611.33,610.4,5.608]
[1742096983782,0.28498428,611.32,610.4,5.608]
[1742096983985,0.32716624,611.31,610.4,5.608]
[1742097007105,0.28500412,611.3,610.4,5.608]
[1742097007404,0.32717695,611.29,610.4,5.608]
[1742097007802,0.6121939,611.29,610.4,5.608]
[1742097010399,0.32717695,611.29,610.4,5.608]
[1742097021310,2.47130862,611.26,610.4,5.608]
[1742097023213,0.32717695,611.29,610.4,5.608]
[1742097032116,2.47130862,611.08,610.4,5.608]
[1742097033723,2.47130862,611.2,610.4,5.608]
[1742097035528,2.47130862,611.22,610.4,5.608]
[1742097036524,2.47130862,611.26,610.4,5.608]
[1742097037928,2.47130862,611.25,610.4,5.608]
[1742097039527,0.32717695,611.29,610.4,5.608]
[1742097041931,2.47130862,611.33,610.4,5.608]
[1742097043234,2.47130862,611.4,610.4,5.608]
[1742097046538,2.47130862,611.34,610.4,5.608]
[1742097049344,0.28497144,611.43,610.4,5.608]
[1742097049644,3.63995996,611.58,610.4,5.608]
[1742097049839,3.63995996,611.57,610.4,5.608]
[1742097050040,3.63995996,611.56,610.4,5.608]
[1742097050340,3.63995996,611.55,610.4,5.608]
[1742097050541,3.63995996,611.54,610.4,5.608]
[1742097050742,3.63995996,611.53,610.4,5.608]
[1742097050941,3.63995996,611.52,610.4,5.608]
[1742097051141,3.63995996,611.51,610.4,5.608]
[1742097051343,3.63995996,611.5,610.4,5.608]
[1742097051541,0.28495277,611.55,610.4,5.608]
[1742097051741,2.75626139,611.55,610.4,5.608]
[1742097052543,2.47130862,611.55,610.4,5.608]
[1742097052741,0.28493994,611.54,610.4,5.608]
[1742097055945,2.47130862,611.53,610.4,5.608]
[1742097058146,0.28493994,611.54,610.4,5.608]
[1742097058647,2.47130862,611.58,610.4,5.608]
[1742097058947,0.28491778,611.57,610.4,5.608]
[1742097061445,2.47130862,611.71,610.4,5.608]
[1742097061950,0.28490262,611.57,610.4,5.608]
[1742097062150,2.47130862,611.71,610.4,5.608]
[1742097062353,2.47130862,611.7,610.4,5.608]
[1742097062951,0.28490378,611.69,610.4,5.608]
[1742097064351,2.47130862,611.61,610.4,5.608]
[1742097066556,2.47130862,611.45,610.4,5.608]
[1742097069458,2.47130862,611.23,610.4,5.608]
[1742097072065,2.47130862,611.29,610.4,5.608]
[1742097074457,0.32718765,611.27,610.4,5.608]
[1742097074769,3.63995996,611.26,609.77,1.22138985]
[1742097074966,0.32720371,611.24,609.77,1.22138985]
[1742097076662,0.32720371,611.24,608.47,1.22138985]
[1742097076862,0.28512905,611.23,609.42,0.28512905]
[1742097077058,0.28512905,611.23,609.43,2.64522527]
[1742097077263,0.28512905,611.23,609.44,2.64522527]
[1742097077463,0.28512905,611.23,609.45,2.97339]
[1742097077671,0.28512905,611.23,609.46,3.78107768]
[1742097077963,0.28512905,611.23,609.47,4.42222527]
[1742097078164,0.28512905,611.23,609.48,2.64522527]
[1742097078360,0.32721977,611.21,609.49,2.97336847]
[1742097078559,0.32721977,611.21,609.5,3.78107768]
[1742097078771,0.32721977,611.21,609.51,2.9733577]
[1742097078957,0.32721977,611.21,609.5,1.13585241]
[1742097078958,0.32721977,611.21,609.52,1.34552138]
[1742097079160,0.32721977,611.21,609.53,1.34551599]
[1742097079465,0.32721977,611.21,609.54,1.34395092]
[1742097079664,0.32721977,611.21,609.55,0.3281109]
[1742097079860,0.28519097,611.2,609.55,0.3281109]
[1742097080165,0.32723583,611.18,609.55,0.3281109]
[1742097083771,0.28512905,611.17,609.55,0.3281109]
[1742097084562,0.3272519,611.15,609.55,0.3281109]
[1742097084761,0.3272519,611.15,609.56,1.01347971]
[1742097084965,0.3272519,611.15,609.55,0.3281109]
[1742097085363,0.3272519,611.15,609.56,1.01329757]
[1742097085567,0.3272519,611.15,609.57,1.3413977]
[1742097085868,0.3272519,611.15,609.58,1.34139232]
[1742097086074,0.3272519,611.15,609.59,1.34138694]
[1742097086265,0.3272519,611.15,609.6,1.34138155]
[1742097086463,0.3272519,611.15,609.61,1.34137617]
[1742097086669,0.3272519,611.15,609.61,0.3280786]
[1742097086962,0.28510452,611.14,609.61,0.3280786]
[1742097087178,0.32726261,611.13,609.61,0.3280786]
[1742097089865,0.28509518,611.12,609.61,0.3280786]
[1742097090068,0.32727332,611.11,609.61,0.3280786]
[1742097097172,0.32727332,611.11,609.62,1.287]
[1742097098066,0.32727332,611.11,609.63,1.282]
[1742097099673,0.32727332,611.11,609.63,1.61006784]
[1742097100775,0.28517344,611.1,609.63,1.61006784]
[1742097100975,0.32728403,611.09,609.63,1.61006784]
[1742097101176,0.32728403,611.09,609.64,1.19]
[1742097102277,0.32728403,611.09,609.65,1.24]
[1742097103277,0.32728403,611.09,609.66,0.3280517]
[1742097107882,0.28510452,611.08,609.66,0.3280517]
[1742097109578,0.32728403,611.09,609.66,0.3280517]
[1742097109780,0.3273001,611.06,609.66,0.3280517]
[1742097110782,0.28513722,611.05,609.66,0.3280517]
[1742097110977,0.32731081,611.04,609.66,0.3280517]
[1742097113884,0.28513722,611.03,609.66,0.3280517]
[1742097114184,0.32732152,611.02,609.66,0.3280517]
[1742097121087,0.32732152,611.02,609.66,1.9280517]
[1742097124696,0.28521317,611.01,609.66,3.3820517]
[1742097124997,0.32733759,610.99,609.66,3.3820517]
[1742097127896,0.28521551,610.98,609.66,5.0780517]
[1742097130996,0.32734831,610.97,609.66,5.0780517]
[1742097134906,0.28521317,610.96,609.66,5.0780517]
[1742097135110,0.32735903,610.95,609.66,5.0780517]
[1742097136702,2.47130862,610.66,609.66,5.0780517]
[1742097138606,2.47130862,610.71,609.66,5.0780517]
[1742097139007,2.47130862,610.71,609.66,6.2590517]
[1742097140210,2.47130862,610.7,609.66,6.2590517]
[1742097142106,2.47130862,610.62,609.66,6.2590517]
[1742097144413,2.47130862,610.61,609.66,6.2590517]
[1742097146316,2.47130862,610.58,609.66,6.2590517]
[1742097147910,2.47130862,610.55,609.66,6.2590517]
[1742097150120,0.32735903,610.95,609.66,6.2590517]
[1742097151518,0.32735903,610.95,609.67,1.02104534]
[1742097151725,0.32735903,610.95,609.68,1.02100268]
[1742097152020,0.32735903,610.95,609.66,6.2590517]
[1742097152021,0.32735903,610.95,609.69,1.02100268]
[1742097152222,0.32735903,610.95,609.7,1.02107505]
[1742097152418,0.32735903,610.95,609.66,2.9630517]
[1742097152618,0.32735903,610.95,609.67,1.02108184]
[1742097152818,0.32735903,610.95,609.68,1.02108184]
[1742097153018,0.32735903,610.95,609.69,1.02108184]
[1742097153323,0.32735903,610.95,609.7,1.02108184]
[1742097153521,0.32735903,610.95,609.71,1.02108184]
[1742097153722,0.32735903,610.95,609.66,2.9630517]
[1742097153928,0.32735903,610.95,609.67,1.02117769]
[1742097154119,0.32735903,610.95,609.68,1.02117769]
[1742097154315,0.32735903,610.95,609.67,1.798]
[1742097154518,0.32735903,610.95,609.68,1.02120185]
[1742097154721,0.32735903,610.95,609.69,1.02120185]
[1742097154919,0.32735903,610.95,609.7,1.02120185]
[1742097155125,0.32735903,610.95,609.71,1.02120185]
[1742097155324,0.32735903,610.95,609.72,1.02120185]
[1742097155522,0.32735903,610.95,609.7,1.956]
[1742097155722,0.32735903,610.95,609.71,1.02123066]
[1742097155930,0.32735903,610.95,609.7,1.956]
[1742097156128,0.32735903,610.95,609.71,1.02123514]
[1742097156327,0.32735903,610.95,609.7,1.956]
[1742097156532,0.32735903,610.95,609.71,1.02124831]
[1742097156729,0.32735903,610.95,609.7,1.956]
[1742097157029,0.32735903,610.95,609.71,1.02124711]
[1742097157225,0.32735903,610.95,609.72,1.02124711]
[1742097157428,0.32735903,610.95,609.73,1.02124711]
[1742097157629,0.32735903,610.95,609.7,1.956]
[1742097157833,0.32735903,610.95,609.71,1.02126069]
[1742097158029,0.32735903,610.95,609.72,1.02126069]
[1742097158223,0.32735903,610.95,609.73,1.02126069]
[1742097158525,0.32735903,610.95,609.7,1.956]
[1742097158728,0.32735903,610.95,609.71,1.02130616]
[1742097159035,0.32735903,610.95,609.7,1.956]
[1742097163332,0.32735903,610.95,609.67,1.798]
[1742097163333,0.32735903,610.95,609.66,1.14284744]
[1742097163631,0.32735903,610.95,608.96,1.22138985]
[1742097164229,0.32735903,610.95,608.99,1.22737065]
[1742097164625,2.63098614,610.94,608.99,1.22737065]
[1742097164930,0.3273751,610.92,608.59,0.39252927]
[1742097165723,3.54451594,610.91,608.59,0.39252927]
[1742097165925,3.54451594,610.9,608.59,0.39252927]
[1742097166128,3.54451594,610.89,608.59,0.39252927]
[1742097166331,3.54451594,610.88,608.59,0.39252927]
[1742097166526,3.54451594,610.87,608.59,0.39252927]
[1742097166729,3.54451594,610.86,608.59,0.39252927]
[1742097166931,3.54451594,610.85,608.59,0.39252927]
[1742097167132,3.54451594,610.84,608.59,0.39252927]
[1742097167329,3.54451594,610.83,608.59,0.39252927]
[1742097167533,2.47130862,609.66,608.6,1.244]
[1742097169635,2.47130862,610.85,608.6,1.244]
[1742097170429,0.32747159,610.74,608.6,1.244]
[1742097171836,0.32747159,610.74,608.6,0.9583467]
[1742097172233,2.47130862,610.62,608.6,0.9583467]
[1742097172433,0.32758959,610.52,608.6,0.9583467]
[1742097179841,0.28571311,610.51,608.6,0.9583467]
[1742097180442,0.32760569,610.49,608.6,0.9583467]
[1742097181944,0.28574478,610.48,608.6,0.9583467]
[1742097182240,0.32762179,610.46,608.6,0.9583467]
[1742097184749,0.28573892,610.45,608.6,0.9583467]
[1742097184948,0.32763789,610.43,608.6,0.9583467]
[1742097188448,0.32763789,610.43,608.29,1.522]
[1742097192156,0.32763789,610.43,608.3,0.32878513]
[1742097193759,0.32763789,610.43,608.31,0.30185999]
[1742097193954,0.32763789,610.43,608.32,0.32877432]
[1742097194559,0.32763789,610.43,608.33,1.437]
[1742097194759,0.285624,610.42,608.34,0.32876352]
[1742097195161,2.75693262,610.42,608.34,0.32876352]
[1742097195770,2.75693262,610.42,608.35,1.354]
[1742097196460,2.75693262,610.42,608.36,0.32875271]
[1742097196659,0.32769694,610.32,608.36,0.32875271]
[1742097197366,2.47130862,610.23,608.36,0.32875271]
[1742097197661,0.32775601,610.21,608.36,0.32875271]
[1742097198257,2.47130862,610.04,608.36,0.32875271]
[1742097198463,2.47130862,609.75,608.36,0.32875271]
[1742097198657,2.47130862,609.75,608.37,1.187]
[1742097198872,2.47130862,609.75,608.38,0.3287419]
[1742097200062,2.47130862,609.89,608.38,0.3287419]
[1742097200259,0.32793336,609.88,608.38,0.3287419]
[1742097203260,2.47130862,609.63,608.38,0.3287419]
[1742097203464,0.3280786,609.61,608.38,0.3287419]
[1742097205667,2.47130862,609.46,608.38,0.3287419]
[1742097207368,2.47130862,609.49,608.38,0.3287419]
[1742097208664,2.47130862,609.49,608.37,1.187]
[1742097209764,2.47130862,609.56,608.37,1.187]
[1742097211571,2.47130862,609.24,608.37,1.187]
[1742097211870,2.47130862,609.24,608.38,1.365]
[1742097213770,2.47130862,609.41,608.38,1.365]
[1742097215172,0.3280786,609.61,608.38,1.365]
[1742097215173,2.47130862,609.45,608.38,1.365]
[1742097216365,2.47130862,609.37,608.38,1.365]
[1742097218569,2.47130862,609.35,608.38,1.365]
[1742097219774,2.47130862,609.32,608.38,1.365]
[1742097221574,2.47130862,609.5,608.38,1.365]
[1742097221773,0.3281432,609.49,608.38,1.365]
[1742097224871,0.3281432,609.49,608.39,1.417]
[1742097230981,0.3281432,609.49,608.4,1.193]
[1742097242087,0.3281432,609.49,608.4,2.972]
[1742097242887,2.47130862,609.42,608.4,2.972]
[1742097244487,2.47130862,609.42,608.4,4.707]
[1742097244689,2.47130862,609.41,608.4,4.707]
[1742097247088,0.3281432,609.49,608.4,4.707]
[1742097247089,2.47130862,609.35,608.4,4.707]
[1742097250395,0.3281432,609.49,608.4,4.707]
[1742097252190,0.3281432,609.49,608.4,5.994]
[1742097257695,2.47130862,609.43,608.4,5.994]
[1742097258596,2.79948412,609.43,608.4,5.994]
[1742097258990,2.47130862,609.39,608.4,5.994]
[1742097261596,2.47130862,609.32,608.4,5.994]
[1742097263197,2.47130862,609.22,608.4,5.994]
[1742097264599,0.3281755,609.43,608.4,5.994]
[1742097285425,2.47130862,609.67,608.4,5.994]
[1742097286024,2.47130862,609.67,608.41,0.32872569]
[1742097286523,3.60932749,609.96,608.41,0.32872569]
[1742097286524,2.47130862,609.83,608.41,0.32872569]
[1742097286722,0.32796562,609.82,608.41,0.32872569]
[1742097287322,0.32796562,609.82,608.42,1.02808128]
[1742097287524,0.32796562,609.82,608.43,1.35679616]
[1742097287725,0.32796562,609.82,608.44,2.5488816]
[1742097287926,2.47130862,609.8,608.44,1.52080032]
[1742097288320,2.47130862,609.8,608.44,0.32870948]
[1742097288821,2.47130862,609.8,608.45,1.677]
[1742097289024,2.47130862,609.8,608.45,2.956]
[1742097289420,2.47130862,609.79,608.45,2.956]
[1742097289620,2.47130862,609.79,608.46,1.472]
[1742097289925,2.47130862,609.79,608.47,0.32869327]
[1742097291126,2.47130862,609.78,608.47,0.32869327]
[1742097292525,0.32796562,609.82,608.47,0.32869327]
[1742097294827,0.32796562,609.82,608.48,1.02644764]
[1742097295026,0.32796562,609.82,608.5,0.32867707]
[1742097295327,0.32796562,609.82,608.51,1.02644764]
[1742097295529,0.32796562,609.82,608.52,1.02644764]
[1742097295731,0.32796562,609.82,608.53,1.35510851]
[1742097295931,0.32796562,609.82,608.55,0.32865006]
[1742097296131,0.32796562,609.82,608.56,2.66764115]
[1742097296327,0.32796562,609.82,608.57,2.66623747]
[1742097296532,0.32796562,609.82,608.58,2.66619649]
[1742097296727,0.32796562,609.82,608.6,0.32862306]
[1742097296931,0.32796562,609.82,608.61,1.3281375]
[1742097297133,0.32796562,609.82,608.63,0.32860687]
[1742097298028,0.32796562,609.82,608.64,1.02410726]
[1742097298334,0.32796562,609.82,608.65,0.32859607]
[1742097299334,2.47130862,609.98,608.66,2.65943686]
[1742097299536,2.47130862,610.12,608.68,0.32857987]
[1742097299735,2.47130862,610.12,608.69,2.96097596]
[1742097299934,2.47130862,610.12,608.71,0.32856368]
[1742097300130,2.47130862,610.12,608.72,2.6593619]
[1742097300334,2.47130862,610.12,608.74,0.32854749]
[1742097300535,2.47130862,610.12,608.75,1.02295399]
[1742097300733,2.47130862,610.12,608.77,0.3285313]
[1742097300934,2.47130862,610.12,608.78,1.02295399]
[1742097301237,2.47130862,610.12,608.8,0.32851511]
[1742097301456,3.59527442,610.36,608.8,0.32851511]
[1742097301636,0.32768083,610.35,608.8,0.32851511]
[1742097302547,0.32768083,610.35,608.81,1.32250027]
[1742097302728,0.32768083,610.35,608.83,0.32849892]
[1742097302930,0.32768083,610.35,608.84,1.32247334]
[1742097303131,0.32768083,610.35,608.86,0.32848273]
[1742097303334,0.32768083,610.35,608.87,1.18370188]
[1742097303631,0.32768083,610.35,608.89,0.32846655]
[1742097303835,0.32768083,610.35,608.9,0.30154516]
[1742097304235,0.32768083,610.35,608.92,0.32845037]
[1742097304437,0.32768083,610.35,608.93,0.30154516]
[1742097304734,0.32768083,610.35,608.94,0.32843958]
[1742097313637,0.32768083,610.35,608.95,1.355]
[1742097317856,0.32768083,610.35,608.96,1.56]
[1742097323549,2.47130862,610.3,608.96,1.56]
[1742097323750,0.32771305,610.29,608.96,1.56]
[1742097325460,2.47130862,610.23,608.96,1.56]
[1742097325658,0.32775601,610.21,608.96,1.56]
[1742097327257,2.47130862,610.09,608.96,1.56]
[1742097327460,0.32782585,610.08,608.96,1.56]
[1742097327760,0.32782585,610.08,608.97,1.853]
[1742097329259,2.47130862,610.01,608.97,1.853]
[1742097329856,0.32786885,610.0,608.97,1.853]
[1742097330862,0.32786885,610.0,608.98,1.768]
[1742097342171,0.32786885,610.0,608.99,1.423]
[1742097345975,2.47130862,609.99,608.99,1.423]
[1742097348276,0.32786885,610.0,608.99,1.423]
[1742097349277,2.47130862,609.87,608.99,1.423]
[1742097351574,2.47130862,609.86,608.99,1.423]
[1742097353178,2.47130862,609.91,608.99,1.423]
[1742097354973,2.47130862,609.92,609.0,1.734]
[1742097357181,2.47130862,609.9,609.0,1.734]
[1742097357379,2.47130862,609.9,609.01,1.444]
[1742097358475,0.32786885,610.0,609.01,1.444]
[1742097367887,0.32786885,610.0,609.02,1.815]
[1742097368694,2.47130862,609.87,609.02,1.815]
[1742097370793,2.47130862,609.72,609.02,1.815]
[1742097372490,2.47130862,609.68,609.02,1.815]
[1742097372889,2.47130862,609.68,609.02,2.941]
[1742097373794,2.47130862,609.7,609.02,2.941]
[1742097375794,2.47130862,609.63,609.02,2.941]
[1742097377095,0.32786885,610.0,609.02,2.941]
[1742097377096,2.47130862,609.61,609.02,2.941]
[1742097379696,0.32786885,610.0,609.02,2.941]
[1742097381191,0.32786885,610.0,609.02,4.622]